[Event "*** Titled Tuesday Blitz"]
[Site "Chess.com"]
[Date "2018.06.05"]
[Round "5"]
[White "FearNoEvil12"]
[Black "albi1999"]
[Result "0-1"]
[WhiteElo "1950"]
[BlackElo "2535"]
[TimeControl "180+2"]
[EndTime "14:13:05 PDT"]
[Termination "albi1999 won by resignation"]

1. e4 {[%clk 0:03:01.9]} 1... e5 {[%clk 0:02:58.3]} 2. d4 {[%clk 0:03:02.2]}
2... exd4 {[%clk 0:02:58.6]} 3. Bc4 {[%clk 0:03:03.7]} 3... Nc6 {[%clk
0:02:59.2]} 4. Nf3 {[%clk 0:03:05.1]} 4... Bc5 {[%clk 0:02:58.2]} 5. O-O {[%clk
0:03:04.6]} 5... d6 {[%clk 0:02:56.8]} 6. h3 {[%clk 0:03:03.8]} 6... Nf6 {[%clk
0:02:55.6]} 7. c3 {[%clk 0:03:03.7]} 7... d3 {[%clk 0:02:52.4]} 8. Qxd3 {[%clk
0:03:03.7]} 8... h6 {[%clk 0:02:50.1]} 9. Be3 {[%clk 0:02:59.7]} 9... Bxe3
{[%clk 0:02:49]} 10. Qxe3 {[%clk 0:02:59.9]} 10... O-O {[%clk 0:02:50.4]} 11.
Nbd2 {[%clk 0:03:00]} 11... Re8 {[%clk 0:02:50.1]} 12. Rfe1 {[%clk 0:02:58.8]}
12... d5 {[%clk 0:02:44.1]} 13. Bb3 {[%clk 0:02:52.8]} 13... dxe4 {[%clk
0:02:44]} 14. Nd4 {[%clk 0:02:53]} 14... Nxd4 {[%clk 0:02:44.5]} 15. Qxd4 {[%clk
0:02:51.2]} 15... Qxd4 {[%clk 0:02:43.3]} 16. cxd4 {[%clk 0:02:52.2]} 16... Bf5
{[%clk 0:02:40.8]} 17. Nc4 {[%clk 0:02:48.3]} 17... Rad8 {[%clk 0:02:38.5]} 18.
Rad1 {[%clk 0:02:47.6]} 18... Be6 {[%clk 0:02:37.5]} 19. Na5 {[%clk 0:02:37]}
19... Bxb3 {[%clk 0:02:37.5]} 20. Nxb3 {[%clk 0:02:34.3]} 20... Rd5 {[%clk
0:02:35.2]} 21. Rc1 {[%clk 0:02:32.8]} 21... Re7 {[%clk 0:02:32.9]} 22. Kf1
{[%clk 0:02:32.6]} 22... b6 {[%clk 0:02:33.8]} 23. Rc6 {[%clk 0:02:30.9]} 23...
Kf8 {[%clk 0:02:29.8]} 24. Rec1 {[%clk 0:02:31.3]} 24... Ne8 {[%clk 0:02:30]}
25. Ke2 {[%clk 0:02:27.6]} 25... a5 {[%clk 0:02:30.9]} 26. Ke3 {[%clk
0:02:26.7]} 26... f5 {[%clk 0:02:20.4]} 27. g3 {[%clk 0:02:13.7]} 27... Rb5
{[%clk 0:02:17.7]} 28. R1c2 {[%clk 0:02:04.3]} 28... Nf6 {[%clk 0:02:16.9]} 29.
Rxf6+ {[%clk 0:01:33.1]} 29... gxf6 {[%clk 0:02:15.8]} 30. Kf4 {[%clk
0:01:32.7]} 30... Rd7 {[%clk 0:02:06.5]} 31. Rc6 {[%clk 0:01:28.8]} 31... Kf7
{[%clk 0:02:04.4]} 32. g4 {[%clk 0:01:23.9]} 32... fxg4 {[%clk 0:02:04.7]} 33.
hxg4 {[%clk 0:01:24.8]} 33... a4 {[%clk 0:02:05.6]} 34. Nd2 {[%clk 0:01:24.1]}
34... Rxb2 {[%clk 0:02:06.2]} 35. Nxe4 {[%clk 0:01:24.2]} 35... Rxd4 {[%clk
0:02:05.8]} 36. Rxf6+ {[%clk 0:01:10.1]} 36... Ke7 {[%clk 0:02:03.6]} 37. Rxh6
{[%clk 0:01:08.4]} 37... Rxa2 {[%clk 0:02:03.2]} 38. f3 {[%clk 0:01:07.8]} 38...
Rd5 {[%clk 0:01:58]} 39. Ng3 {[%clk 0:00:50.8]} 39... a3 {[%clk 0:01:46.4]} 40.
Nf5+ {[%clk 0:00:48.1]} 40... Kd7 {[%clk 0:01:45.9]} 41. Rh7+ {[%clk 0:00:40.2]}
41... Ke8 {[%clk 0:01:25.9]} 42. Rxc7 {[%clk 0:00:37.2]} 42... Re2 {[%clk
0:01:13]} 43. Ra7 {[%clk 0:00:31]} 43... Ra5 {[%clk 0:01:08.8]} 44. Rh7 {[%clk
0:00:14.3]} 44... a2 {[%clk 0:01:01]} 0-1

[Event "*** Titled Tuesday Blitz"]
[Site "Chess.com"]
[Date "2018.06.05"]
[Round "5"]
[White "sergeikim"]
[Black "Iball95"]
[Result "0-1"]
[WhiteElo "2385"]
[BlackElo "2549"]
[TimeControl "180+2"]
[EndTime "14:13:08 PDT"]
[Termination "Iball95 won by resignation"]

1. d4 {[%clk 0:03:01.9]} 1... Nf6 {[%clk 0:02:59.1]} 2. c4 {[%clk 0:03:02.6]}
2... e6 {[%clk 0:02:58.7]} 3. Nc3 {[%clk 0:03:03.4]} 3... Bb4 {[%clk 0:03:00]}
4. Qc2 {[%clk 0:03:04.2]} 4... O-O {[%clk 0:03:01.4]} 5. a3 {[%clk 0:03:05]}
5... Bxc3+ {[%clk 0:03:02.8]} 6. Qxc3 {[%clk 0:03:06.1]} 6... d5 {[%clk
0:03:04.7]} 7. Nf3 {[%clk 0:03:06.7]} 7... dxc4 {[%clk 0:03:05.1]} 8. Qxc4
{[%clk 0:03:07.6]} 8... b6 {[%clk 0:03:06.5]} 9. Bf4 {[%clk 0:03:07.7]} 9... c5
{[%clk 0:02:59.5]} 10. dxc5 {[%clk 0:03:00]} 10... Ba6 {[%clk 0:02:59.9]} 11.
Qa4 {[%clk 0:03:00.2]} 11... bxc5 {[%clk 0:02:58.7]} 12. Bxb8 {[%clk 0:02:43.6]}
12... Qxb8 {[%clk 0:02:52.1]} 13. Qxa6 {[%clk 0:02:44.4]} 13... Qxb2 {[%clk
0:02:53.1]} 14. Rd1 {[%clk 0:02:45.1]} 14... Qc3+ {[%clk 0:02:53.6]} 15. Nd2
{[%clk 0:02:42.5]} 15... Rab8 {[%clk 0:02:15.8]} 16. Qd3 {[%clk 0:02:16.4]}
16... Qa5 {[%clk 0:02:15.6]} 17. e3 {[%clk 0:02:16.8]} 17... Rb2 {[%clk
0:02:00.1]} 18. Be2 {[%clk 0:02:04.4]} 18... Rd8 {[%clk 0:01:38.8]} 19. Qa6
{[%clk 0:01:43.9]} 19... Qc3 {[%clk 0:01:12.4]} 20. O-O {[%clk 0:01:17.1]} 20...
Rbxd2 {[%clk 0:01:05.5]} 21. Rxd2 {[%clk 0:01:17.2]} 21... Qxd2 {[%clk
0:01:07.4]} 22. Bf3 {[%clk 0:01:11.9]} 22... Qd7 {[%clk 0:01:05.6]} 23. h3
{[%clk 0:01:10.5]} 23... Qc7 {[%clk 0:01:06]} 24. Rc1 {[%clk 0:01:09.1]} 24...
h6 {[%clk 0:01:06.3]} 25. g3 {[%clk 0:01:07]} 25... Nd5 {[%clk 0:01:05.8]} 26.
Kg2 {[%clk 0:01:05.2]} 26... Rc8 {[%clk 0:01:04.8]} 27. Qc4 {[%clk 0:01:03.5]}
27... Nb6 {[%clk 0:01:05.4]} 28. Qb5 {[%clk 0:01:03.7]} 28... c4 {[%clk
0:01:04.9]} 29. a4 {[%clk 0:01:03.3]} 29... c3 {[%clk 0:00:57.8]} 30. a5 {[%clk
0:01:03.8]} 30... Nd7 {[%clk 0:00:58.5]} 31. Bb7 {[%clk 0:00:59.4]} 31... Rd8
{[%clk 0:00:53.3]} 32. a6 {[%clk 0:00:56]} 32... Nb6 {[%clk 0:00:44.1]} 33. Qb4
{[%clk 0:00:46.6]} 33... c2 {[%clk 0:00:44.5]} 34. Qb3 {[%clk 0:00:45.1]} 34...
Rd2 {[%clk 0:00:44.6]} 35. h4 {[%clk 0:00:42.7]} 35... Qc4 {[%clk 0:00:38.5]}
36. Qxc4 {[%clk 0:00:36]} 36... Nxc4 {[%clk 0:00:40.4]} 37. Be4 {[%clk
0:00:28.1]} 37... Nxe3+ {[%clk 0:00:37.8]} 38. Kf3 {[%clk 0:00:28.1]} 38... Rd1
{[%clk 0:00:39.2]} 39. Rxc2 {[%clk 0:00:26.2]} 39... Nxc2 {[%clk 0:00:39.9]} 0-1

[Event "*** Titled Tuesday Blitz"]
[Site "Chess.com"]
[Date "2018.06.05"]
[Round "5"]
[White "Vamostodorecto"]
[Black "Ali_rastbod"]
[Result "0-1"]
[WhiteElo "2350"]
[BlackElo "2516"]
[TimeControl "180+2"]
[EndTime "14:13:09 PDT"]
[Termination "Ali_rastbod won by resignation"]

1. d4 {[%clk 0:03:01.9]} 1... Nf6 {[%clk 0:02:59.8]} 2. c4 {[%clk 0:03:01.5]}
2... g6 {[%clk 0:02:59.5]} 3. Nc3 {[%clk 0:03:01.9]} 3... d5 {[%clk 0:03:00.8]}
4. Nf3 {[%clk 0:03:02]} 4... Bg7 {[%clk 0:03:01.5]} 5. e3 {[%clk 0:03:02.5]}
5... O-O {[%clk 0:03:02.2]} 6. Bd2 {[%clk 0:03:02.9]} 6... b6 {[%clk 0:02:42.5]}
7. cxd5 {[%clk 0:03:02.4]} 7... Nxd5 {[%clk 0:02:43.3]} 8. Bc4 {[%clk 0:03:04]}
8... Bb7 {[%clk 0:02:44.6]} 9. O-O {[%clk 0:03:01.7]} 9... Nxc3 {[%clk
0:02:41.9]} 10. Bxc3 {[%clk 0:02:59.5]} 10... Bd5 {[%clk 0:02:43.1]} 11. Qe2
{[%clk 0:02:55.5]} 11... e6 {[%clk 0:02:17.4]} 12. e4 {[%clk 0:02:53.7]} 12...
Bxc4 {[%clk 0:02:18.4]} 13. Qxc4 {[%clk 0:02:55.5]} 13... Nd7 {[%clk 0:02:20.3]}
14. e5 {[%clk 0:02:47.3]} 14... c5 {[%clk 0:01:47.6]} 15. Rad1 {[%clk
0:02:44.8]} 15... Qc7 {[%clk 0:01:34.6]} 16. Rfe1 {[%clk 0:02:38.6]} 16... Rfe8
{[%clk 0:01:20.3]} 17. d5 {[%clk 0:02:19.6]} 17... exd5 {[%clk 0:01:22.2]} 18.
Qxd5 {[%clk 0:02:21.2]} 18... Nf8 {[%clk 0:01:21.8]} 19. Qd6 {[%clk 0:02:10.7]}
19... Qb7 {[%clk 0:01:18.2]} 20. h4 {[%clk 0:01:56.9]} 20... Ne6 {[%clk
0:01:17.8]} 21. Qd7 {[%clk 0:01:52.8]} 21... Qa6 {[%clk 0:01:19]} 22. Ng5 {[%clk
0:01:12.3]} 22... Nxg5 {[%clk 0:01:12.8]} 23. hxg5 {[%clk 0:01:14.2]} 23... Qxa2
{[%clk 0:01:02.7]} 24. e6 {[%clk 0:00:33.1]} 24... Rxe6 {[%clk 0:00:47.5]} 25.
Rxe6 {[%clk 0:00:29]} 25... Qxe6 {[%clk 0:00:47.8]} 26. Qxe6 {[%clk 0:00:23.6]}
26... fxe6 {[%clk 0:00:49.7]} 27. Bxg7 {[%clk 0:00:22.1]} 27... Kxg7 {[%clk
0:00:51.6]} 28. Rd7+ {[%clk 0:00:23.1]} 28... Kg8 {[%clk 0:00:51.9]} 29. Re7
{[%clk 0:00:23.3]} 29... b5 {[%clk 0:00:38.4]} 30. f4 {[%clk 0:00:20.8]} 30...
a5 {[%clk 0:00:37.3]} 31. Kf2 {[%clk 0:00:21.2]} 31... a4 {[%clk 0:00:29.5]} 32.
Ke3 {[%clk 0:00:21.4]} 32... b4 {[%clk 0:00:30.7]} 33. Kd3 {[%clk 0:00:22.1]}
33... a3 {[%clk 0:00:31.7]} 34. bxa3 {[%clk 0:00:19.6]} 34... bxa3 {[%clk
0:00:33.6]} 35. Rxe6 {[%clk 0:00:20.4]} 35... a2 {[%clk 0:00:34.5]} 36. Re1
{[%clk 0:00:13.4]} 36... a1=Q {[%clk 0:00:35.4]} 0-1

[Event "*** Titled Tuesday Blitz"]
[Site "Chess.com"]
[Date "2018.06.05"]
[Round "5"]
[White "aqmarkin"]
[Black "CookiesAndIceCream"]
[Result "1-0"]
[WhiteElo "2207"]
[BlackElo "1987"]
[TimeControl "180+2"]
[EndTime "14:13:12 PDT"]
[Termination "aqmarkin won by resignation"]

1. e4 {[%clk 0:03:01.9]} 1... e5 {[%clk 0:03:00.9]} 2. Nf3 {[%clk 0:03:02.7]}
2... Nc6 {[%clk 0:03:02.3]} 3. Bb5 {[%clk 0:03:03.6]} 3... g6 {[%clk 0:02:59.8]}
4. O-O {[%clk 0:03:02.3]} 4... Bg7 {[%clk 0:03:00.8]} 5. c3 {[%clk 0:03:02.5]}
5... Nge7 {[%clk 0:03:02.2]} 6. d4 {[%clk 0:03:01.3]} 6... exd4 {[%clk
0:03:04.1]} 7. cxd4 {[%clk 0:03:02.3]} 7... a6 {[%clk 0:03:05.5]} 8. Ba4 {[%clk
0:03:01.7]} 8... b5 {[%clk 0:03:06]} 9. Bb3 {[%clk 0:03:02.8]} 9... O-O {[%clk
0:03:06.4]} 10. Re1 {[%clk 0:03:01.8]} 10... d6 {[%clk 0:03:06.2]} 11. h3 {[%clk
0:03:02.9]} 11... Na5 {[%clk 0:03:06.2]} 12. Bc2 {[%clk 0:03:03.1]} 12... Bb7
{[%clk 0:03:07.7]} 13. b3 {[%clk 0:03:02.7]} 13... c5 {[%clk 0:03:03.4]} 14. Bb2
{[%clk 0:03:03.2]} 14... Nec6 {[%clk 0:03:01.5]} 15. Qd2 {[%clk 0:02:45.9]}
15... Re8 {[%clk 0:02:41.9]} 16. Na3 {[%clk 0:02:39]} 16... b4 {[%clk 0:02:08]}
17. Nc4 {[%clk 0:02:24.2]} 17... Nxc4 {[%clk 0:02:07.4]} 18. bxc4 {[%clk
0:02:26.1]} 18... cxd4 {[%clk 0:02:08.2]} 19. Nxd4 {[%clk 0:02:25.5]} 19... Ne5
{[%clk 0:01:53.5]} 20. Qxb4 {[%clk 0:02:17.7]} 20... Rb8 {[%clk 0:01:54.5]} 21.
Qc3 {[%clk 0:01:58.5]} 21... Qg5 {[%clk 0:01:47.8]} 22. Kh1 {[%clk 0:01:52.6]}
22... Nc6 {[%clk 0:01:31.5]} 23. Qd3 {[%clk 0:01:35.2]} 23... Nb4 {[%clk
0:01:25]} 24. Qe2 {[%clk 0:01:22.8]} 24... Qc5 {[%clk 0:00:59.7]} 25. Nb3 {[%clk
0:01:14.2]} 25... Qg5 {[%clk 0:00:42.1]} 26. Bxg7 {[%clk 0:01:02.8]} 26... Kxg7
{[%clk 0:00:43.1]} 27. Rad1 {[%clk 0:01:03.8]} 27... Qe5 {[%clk 0:00:38.4]} 28.
Bb1 {[%clk 0:00:59.8]} 28... Rbc8 {[%clk 0:00:35.2]} 29. Rd4 {[%clk 0:00:50.7]}
29... Nc6 {[%clk 0:00:28.2]} 30. Rd5 {[%clk 0:00:46.3]} 30... Qe6 {[%clk
0:00:29.3]} 31. Red1 {[%clk 0:00:42.4]} 31... Red8 {[%clk 0:00:23.5]} 32. Nd4
{[%clk 0:00:38.9]} 32... Nxd4 {[%clk 0:00:21.2]} 33. R5xd4 {[%clk 0:00:40.8]}
33... Rc5 {[%clk 0:00:21.7]} 34. Qb2 {[%clk 0:00:39.6]} 34... Ba8 {[%clk
0:00:20.7]} 35. Rxd6+ {[%clk 0:00:35.4]} 35... Re5 {[%clk 0:00:05.6]} 36. Rxe6
{[%clk 0:00:30.7]} 36... Rxd1+ {[%clk 0:00:05.8]} 37. Kh2 {[%clk 0:00:31.6]} 1-0

[Event "*** Titled Tuesday Blitz"]
[Site "Chess.com"]
[Date "2018.06.05"]
[Round "5"]
[White "Morshynska"]
[Black "amiralfio"]
[Result "1-0"]
[WhiteElo "2214"]
[BlackElo "2261"]
[TimeControl "180+2"]
[EndTime "14:13:15 PDT"]
[Termination "Morshynska won by resignation"]

1. d4 {[%clk 0:03:01.9]} 1... d5 {[%clk 0:02:58.7]} 2. c4 {[%clk 0:03:00.7]}
2... e6 {[%clk 0:02:53.9]} 3. Nc3 {[%clk 0:03:00.1]} 3... Bb4 {[%clk 0:02:50.6]}
4. Qa4+ {[%clk 0:02:50.7]} 4... Nc6 {[%clk 0:02:50.9]} 5. Nf3 {[%clk 0:02:49.5]}
5... Nf6 {[%clk 0:02:51.6]} 6. e3 {[%clk 0:02:44]} 6... O-O {[%clk 0:02:50.6]}
7. Bd2 {[%clk 0:02:42.8]} 7... dxc4 {[%clk 0:02:50.9]} 8. Bxc4 {[%clk
0:02:41.7]} 8... Bd6 {[%clk 0:02:51.7]} 9. Rd1 {[%clk 0:02:28.4]} 9... e5 {[%clk
0:02:41.1]} 10. dxe5 {[%clk 0:02:12.7]} 10... Nxe5 {[%clk 0:02:37]} 11. Nxe5
{[%clk 0:02:10.4]} 11... Bxe5 {[%clk 0:02:34.6]} 12. h3 {[%clk 0:01:56.3]} 12...
c6 {[%clk 0:02:31.5]} 13. Qc2 {[%clk 0:01:54.8]} 13... Qe7 {[%clk 0:02:26]} 14.
O-O {[%clk 0:01:35.6]} 14... Bc7 {[%clk 0:01:58.6]} 15. Bc1 {[%clk 0:01:22.9]}
15... Qe5 {[%clk 0:01:55.5]} 16. f4 {[%clk 0:01:23]} 16... Qh5 {[%clk
0:01:56.2]} 17. Qe2 {[%clk 0:01:13.8]} 17... Qh4 {[%clk 0:01:30]} 18. Qf2 {[%clk
0:01:11.3]} 18... Qh5 {[%clk 0:01:30.7]} 19. Qf3 {[%clk 0:01:04.7]} 19... Qc5
{[%clk 0:01:21.6]} 20. Bd3 {[%clk 0:01:00.4]} 20... h5 {[%clk 0:01:12.3]} 21.
Kh1 {[%clk 0:00:58.8]} 21... g6 {[%clk 0:01:05.1]} 22. e4 {[%clk 0:00:59]} 22...
Kg7 {[%clk 0:01:03.5]} 23. Be3 {[%clk 0:00:53.4]} 23... Qb4 {[%clk 0:01:04.3]}
24. a3 {[%clk 0:00:48.4]} 24... Qe7 {[%clk 0:00:53.5]} 25. Bd4 {[%clk
0:00:39.8]} 25... c5 {[%clk 0:00:52.9]} 26. Nd5 {[%clk 0:00:37.1]} 26... Qe6
{[%clk 0:00:52.6]} 27. Bxf6+ {[%clk 0:00:33.6]} 27... Kh7 {[%clk 0:00:53.7]} 28.
Nxc7 {[%clk 0:00:32.3]} 28... Qxf6 {[%clk 0:00:54]} 29. Nxa8 {[%clk 0:00:33.4]}
29... Qe7 {[%clk 0:00:50]} 30. e5 {[%clk 0:00:32.2]} 30... Be6 {[%clk
0:00:41.4]} 31. Qxh5+ {[%clk 0:00:24.1]} 31... Kg7 {[%clk 0:00:41.6]} 32. Qg5
{[%clk 0:00:24.2]} 32... Qxg5 {[%clk 0:00:35.5]} 33. fxg5 {[%clk 0:00:23.4]}
33... Rxa8 {[%clk 0:00:37.4]} 34. Be4 {[%clk 0:00:24.2]} 34... c4 {[%clk
0:00:35.5]} 35. Bd5 {[%clk 0:00:22.2]} 35... Re8 {[%clk 0:00:28.9]} 36. Bxe6
{[%clk 0:00:21.7]} 36... Rxe6 {[%clk 0:00:29.4]} 37. Rd7 {[%clk 0:00:23]} 37...
Rb6 {[%clk 0:00:28.9]} 1-0

[Event "*** Titled Tuesday Blitz"]
[Site "Chess.com"]
[Date "2018.06.05"]
[Round "5"]
[White "awesomevishesh"]
[Black "tteshan"]
[Result "1-0"]
[WhiteElo "2104"]
[BlackElo "1978"]
[TimeControl "180+2"]
[EndTime "14:13:22 PDT"]
[Termination "awesomevishesh won by checkmate"]

1. Nf3 {[%clk 0:03:01.9]} 1... c5 {[%clk 0:03:00.2]} 2. g3 {[%clk 0:03:01.2]}
2... d5 {[%clk 0:02:58]} 3. Bg2 {[%clk 0:02:59.8]} 3... Nf6 {[%clk 0:02:56.3]}
4. O-O {[%clk 0:02:58.1]} 4... Nc6 {[%clk 0:02:57.7]} 5. d4 {[%clk 0:02:56.8]}
5... cxd4 {[%clk 0:02:56.7]} 6. Nxd4 {[%clk 0:02:56.4]} 6... e6 {[%clk
0:02:57.9]} 7. c4 {[%clk 0:02:51.8]} 7... Bc5 {[%clk 0:02:51.4]} 8. Nb3 {[%clk
0:02:26.8]} 8... Be7 {[%clk 0:02:39]} 9. cxd5 {[%clk 0:02:22.3]} 9... Nxd5
{[%clk 0:02:37.4]} 10. a3 {[%clk 0:02:05.2]} 10... O-O {[%clk 0:02:37.4]} 11. e4
{[%clk 0:02:03.2]} 11... Nf6 {[%clk 0:02:36.3]} 12. Nc3 {[%clk 0:01:48.6]} 12...
Ne5 {[%clk 0:02:22.6]} 13. h3 {[%clk 0:01:13.8]} 13... Nd3 {[%clk 0:01:58]} 14.
Be3 {[%clk 0:01:12.5]} 14... Nxb2 {[%clk 0:01:57]} 15. Qe2 {[%clk 0:01:12.1]}
15... Nd3 {[%clk 0:00:50]} 16. Rfd1 {[%clk 0:01:06]} 16... Qc7 {[%clk
0:00:47.9]} 17. Rxd3 {[%clk 0:00:59.4]} 17... b6 {[%clk 0:00:43.4]} 18. a4
{[%clk 0:00:27.1]} 18... e5 {[%clk 0:00:41.4]} 19. Rc1 {[%clk 0:00:23.5]} 19...
Ba6 {[%clk 0:00:41.9]} 20. Nb5 {[%clk 0:00:24.2]} 20... Qb7 {[%clk 0:00:39.5]}
21. f4 {[%clk 0:00:22.5]} 21... Bxb5 {[%clk 0:00:34.4]} 22. axb5 {[%clk
0:00:23]} 22... Rfd8 {[%clk 0:00:23.9]} 23. fxe5 {[%clk 0:00:21.3]} 23... Nd7
{[%clk 0:00:22.3]} 24. e6 {[%clk 0:00:20.5]} 24... Ne5 {[%clk 0:00:23.3]} 25.
exf7+ {[%clk 0:00:21.1]} 25... Kxf7 {[%clk 0:00:22.3]} 26. Rf1+ {[%clk
0:00:20.8]} 26... Kg8 {[%clk 0:00:23]} 27. Rxd8+ {[%clk 0:00:20.8]} 27... Rxd8
{[%clk 0:00:23.2]} 28. Nd4 {[%clk 0:00:17]} 28... Bc5 {[%clk 0:00:21.4]} 29. Ne6
{[%clk 0:00:17.3]} 29... Bxe3+ {[%clk 0:00:21.3]} 30. Qxe3 {[%clk 0:00:18]}
30... Re8 {[%clk 0:00:22.9]} 31. Qb3 {[%clk 0:00:15.3]} 31... Kh8 {[%clk
0:00:24.2]} 32. Qd5 {[%clk 0:00:12.8]} 32... Qe7 {[%clk 0:00:24.2]} 33. Qxe5
{[%clk 0:00:13.4]} 33... Qxe6 {[%clk 0:00:25.4]} 34. Qxe6 {[%clk 0:00:14.6]}
34... Rxe6 {[%clk 0:00:19.1]} 35. Rf8# {[%clk 0:00:15.8]} 1-0

[Event "*** Titled Tuesday Blitz"]
[Site "Chess.com"]
[Date "2018.06.05"]
[Round "5"]
[White "Andreikka"]
[Black "Zaven_ChessMood"]
[Result "0-1"]
[WhiteElo "2799"]
[BlackElo "2885"]
[TimeControl "180+2"]
[EndTime "14:13:27 PDT"]
[Termination "Zaven_ChessMood won on time"]

1. d4 {[%clk 0:03:01.1]} 1... Nf6 {[%clk 0:03:00.2]} 2. Nf3 {[%clk 0:03:02.1]}
2... c5 {[%clk 0:03:01.7]} 3. c3 {[%clk 0:03:02]} 3... d5 {[%clk 0:03:01.6]} 4.
Bf4 {[%clk 0:03:00.9]} 4... Nc6 {[%clk 0:03:02]} 5. e3 {[%clk 0:03:01.7]} 5...
Bg4 {[%clk 0:03:01.7]} 6. Nbd2 {[%clk 0:03:01.5]} 6... e6 {[%clk 0:03:02.3]} 7.
Be2 {[%clk 0:03:01.1]} 7... Bd6 {[%clk 0:03:01.4]} 8. Bxd6 {[%clk 0:02:57.8]}
8... Qxd6 {[%clk 0:03:02.2]} 9. O-O {[%clk 0:02:59.3]} 9... O-O {[%clk
0:03:02.4]} 10. h3 {[%clk 0:02:58.9]} 10... Bh5 {[%clk 0:03:02.1]} 11. Rc1
{[%clk 0:02:54.8]} 11... Rad8 {[%clk 0:02:58.2]} 12. dxc5 {[%clk 0:02:53.2]}
12... Qxc5 {[%clk 0:02:57.5]} 13. Nd4 {[%clk 0:02:54.7]} 13... Bxe2 {[%clk
0:02:56]} 14. Qxe2 {[%clk 0:02:55.4]} 14... e5 {[%clk 0:02:55.9]} 15. Nxc6
{[%clk 0:02:42.9]} 15... bxc6 {[%clk 0:02:55.4]} 16. e4 {[%clk 0:02:43.9]} 16...
Rfe8 {[%clk 0:02:40.9]} 17. b4 {[%clk 0:02:38.6]} 17... Qb6 {[%clk 0:02:39.1]}
18. Rfd1 {[%clk 0:02:39.8]} 18... h6 {[%clk 0:02:36.8]} 19. a3 {[%clk
0:02:39.3]} 19... Re6 {[%clk 0:02:31.4]} 20. exd5 {[%clk 0:02:33.6]} 20... cxd5
{[%clk 0:02:25]} 21. c4 {[%clk 0:02:08.1]} 21... d4 {[%clk 0:02:20.1]} 22. c5
{[%clk 0:02:09.1]} 22... Qc7 {[%clk 0:02:18.2]} 23. Ne4 {[%clk 0:01:52.8]} 23...
Nd5 {[%clk 0:02:18.2]} 24. g3 {[%clk 0:01:53]} 24... a6 {[%clk 0:02:10.5]} 25.
Rd3 {[%clk 0:01:14.8]} 25... f5 {[%clk 0:02:04.5]} 26. Nd2 {[%clk 0:01:13.6]}
26... Qe7 {[%clk 0:01:49.5]} 27. h4 {[%clk 0:00:57]} 27... Nc3 {[%clk
0:01:45.1]} 28. Rdxc3 {[%clk 0:00:56]} 28... dxc3 {[%clk 0:01:45.1]} 29. Rxc3
{[%clk 0:00:57.5]} 29... e4 {[%clk 0:01:41.9]} 30. c6 {[%clk 0:00:46.5]} 30...
f4 {[%clk 0:01:34.6]} 31. Qc4 {[%clk 0:00:34.9]} 31... Kh8 {[%clk 0:01:31.1]}
32. c7 {[%clk 0:00:34.4]} 32... Rc8 {[%clk 0:01:31.3]} 33. gxf4 {[%clk
0:00:27.4]} 33... e3 {[%clk 0:01:28.3]} 34. Nf3 {[%clk 0:00:17.6]} 34... e2
{[%clk 0:01:26.4]} 35. Ne1 {[%clk 0:00:18.5]} 35... Rg6+ {[%clk 0:01:23.5]} 36.
Rg3 {[%clk 0:00:19.6]} 36... Rxg3+ {[%clk 0:01:23.1]} 37. fxg3 {[%clk
0:00:21.5]} 37... Rxc7 {[%clk 0:01:23.7]} 38. Qd3 {[%clk 0:00:22.9]} 38... Rc1
{[%clk 0:01:17.1]} 39. Kf2 {[%clk 0:00:23.5]} 39... Qa7+ {[%clk 0:01:14.9]} 40.
Kf3 {[%clk 0:00:09]} 40... Rxe1 {[%clk 0:01:10.6]} 41. Qd8+ {[%clk 0:00:10.2]}
41... Kh7 {[%clk 0:01:11.1]} 42. Qd3+ {[%clk 0:00:12.1]} 42... g6 {[%clk
0:01:11.7]} 43. h5 {[%clk 0:00:14]} 43... Rf1+ {[%clk 0:01:11.9]} 44. Kg4 {[%clk
0:00:13.7]} 44... Qf7 {[%clk 0:00:57.3]} 0-1

[Event "*** Titled Tuesday Blitz"]
[Site "Chess.com"]
[Date "2018.06.05"]
[Round "5"]
[White "PaulfromSPb"]
[Black "olomi007"]
[Result "0-1"]
[WhiteElo "2426"]
[BlackElo "2639"]
[TimeControl "180+2"]
[EndTime "14:13:28 PDT"]
[Termination "olomi007 won by resignation"]

1. d4 {[%clk 0:03:01.4]} 1... Nf6 {[%clk 0:03:00.3]} 2. Bg5 {[%clk 0:03:02.1]}
2... d5 {[%clk 0:03:00.5]} 3. Nd2 {[%clk 0:03:01.9]} 3... c6 {[%clk 0:02:58.7]}
4. e3 {[%clk 0:03:02.4]} 4... Qb6 {[%clk 0:02:58.2]} 5. Qc1 {[%clk 0:03:01.5]}
5... Nbd7 {[%clk 0:02:56.8]} 6. c4 {[%clk 0:03:00.2]} 6... e6 {[%clk 0:02:54.2]}
7. Ne2 {[%clk 0:02:59.5]} 7... Bb4 {[%clk 0:02:47.9]} 8. Nc3 {[%clk 0:02:59.3]}
8... Qa5 {[%clk 0:02:46.8]} 9. Nb3 {[%clk 0:02:54.4]} 9... Bxc3+ {[%clk
0:02:45.6]} 10. bxc3 {[%clk 0:02:54.5]} 10... Qa4 {[%clk 0:02:46.8]} 11. cxd5
{[%clk 0:02:47.9]} 11... exd5 {[%clk 0:02:47.6]} 12. Bd3 {[%clk 0:02:47.9]}
12... O-O {[%clk 0:02:46.5]} 13. O-O {[%clk 0:02:45.5]} 13... h6 {[%clk
0:02:46.1]} 14. Bh4 {[%clk 0:02:45.6]} 14... Re8 {[%clk 0:02:42.1]} 15. c4
{[%clk 0:02:43.9]} 15... dxc4 {[%clk 0:02:32.5]} 16. Bxc4 {[%clk 0:02:40.8]}
16... Ne4 {[%clk 0:02:33.5]} 17. Bd3 {[%clk 0:02:35.5]} 17... Nd6 {[%clk
0:02:17.2]} 18. Bg3 {[%clk 0:02:34.7]} 18... Ne4 {[%clk 0:02:16]} 19. Bh4 {[%clk
0:02:34]} 19... Nd6 {[%clk 0:02:16.8]} 20. Bg3 {[%clk 0:02:24.6]} 20... Ne4
{[%clk 0:02:16.6]} 21. Bf4 {[%clk 0:02:25.1]} 21... Ndf6 {[%clk 0:02:14.1]} 22.
f3 {[%clk 0:02:25.7]} 22... Ng5 {[%clk 0:02:13.5]} 23. e4 {[%clk 0:02:24.2]}
23... Be6 {[%clk 0:02:10.2]} 24. Bxg5 {[%clk 0:02:06.3]} 24... hxg5 {[%clk
0:02:10.3]} 25. Qc3 {[%clk 0:01:55.7]} 25... Rad8 {[%clk 0:02:07.5]} 26. Bc2
{[%clk 0:01:33.8]} 26... Bxb3 {[%clk 0:02:00.2]} 27. axb3 {[%clk 0:01:34.6]}
27... Qxd4+ {[%clk 0:01:59.8]} 28. Qxd4 {[%clk 0:01:36.5]} 28... Rxd4 {[%clk
0:02:01]} 29. Rxa7 {[%clk 0:01:38]} 29... Rb4 {[%clk 0:01:51.1]} 30. Kf2 {[%clk
0:01:34.4]} 30... Nd7 {[%clk 0:01:49.7]} 31. Ra5 {[%clk 0:01:28.6]} 31... Re5
{[%clk 0:01:43.8]} 32. Ra4 {[%clk 0:01:22.8]} 32... Rxa4 {[%clk 0:01:39.5]} 33.
bxa4 {[%clk 0:01:23.9]} 33... Rc5 {[%clk 0:01:41]} 34. Bb3 {[%clk 0:01:20.7]}
34... Rc3 {[%clk 0:01:42]} 35. Rb1 {[%clk 0:01:21.1]} 35... Nc5 {[%clk
0:01:42.8]} 36. Bd1 {[%clk 0:01:21.3]} 36... Ra3 {[%clk 0:01:37.5]} 37. Kg3
{[%clk 0:01:16.8]} 37... Ra2 {[%clk 0:01:36.1]} 38. Bb3 {[%clk 0:01:13.5]} 38...
Rd2 {[%clk 0:01:29.7]} 39. Bd1 {[%clk 0:00:55.6]} 39... g6 {[%clk 0:01:27]} 40.
Bb3 {[%clk 0:00:45.4]} 40... Kg7 {[%clk 0:01:27.4]} 41. a5 {[%clk 0:00:45.6]}
41... Kf6 {[%clk 0:01:19.4]} 42. Bc4 {[%clk 0:00:46.1]} 42... Rc2 {[%clk
0:01:11.6]} 43. Bf1 {[%clk 0:00:46]} 43... Ra2 {[%clk 0:01:05.7]} 44. a6 {[%clk
0:00:47.3]} 44... bxa6 {[%clk 0:01:03]} 45. Rb6 {[%clk 0:00:48]} 45... Ne6
{[%clk 0:01:02.4]} 46. Bxa6 {[%clk 0:00:46.4]} 46... c5 {[%clk 0:00:56.2]} 47.
Bc4 {[%clk 0:00:46.7]} 47... Rc2 {[%clk 0:00:55.8]} 48. Bd5 {[%clk 0:00:46.2]}
48... c4 {[%clk 0:00:54.1]} 49. Rd6 {[%clk 0:00:46.4]} 49... Ke5 {[%clk
0:00:54.7]} 50. Rc6 {[%clk 0:00:45.1]} 50... Nf4 {[%clk 0:00:55.2]} 0-1